bitfinex/quotes_BTCUSD_20251201
["timestamp","ask_amount","ask_price","bid_price","bid_amount"]
[1764599907464,0.23086189,86632.0,86631.0,0.003]
[1764599907678,0.24239625,86635.0,86631.0,0.003]
[1764599907887,0.23086002,86633.0,86631.0,0.003]
[1764599908321,0.23245325,86632.0,86631.0,0.003]
[1764599908586,0.1579,86632.0,86631.0,0.003]
[1764599908794,0.23086424,86631.0,86630.0,0.00079003]
[1764599909017,0.38876424,86631.0,86630.0,0.00079003]
[1764599909534,0.29537424,86631.0,86630.0,0.00079003]
[1764599909738,0.23086424,86631.0,86630.0,0.00079003]
[1764599910556,0.23286424,86631.0,86630.0,0.00179003]
[1764599911572,0.38876424,86631.0,86630.0,0.00079003]
[1764599912156,0.23186424,86631.0,86630.0,0.00179003]
[1764599912322,0.23086424,86631.0,86630.0,0.00079003]
[1764599912713,0.23286424,86631.0,86630.0,0.00179003]
[1764599913015,0.29537424,86631.0,86630.0,0.00079003]
[1764599913231,0.29537424,86631.0,86630.0,0.00179003]
[1764599913232,0.23186424,86631.0,86630.0,0.00179003]
[1764599914280,0.38976424,86631.0,86630.0,0.00179003]
[1764599914487,0.29637424,86631.0,86630.0,0.00179003]
[1764599914693,0.23186424,86631.0,86630.0,0.00179003]
[1764599915531,0.48855821,86631.0,86630.0,0.00179003]
[1764599915878,0.38976424,86631.0,86630.0,0.00179003]
[1764599921731,0.23186424,86631.0,86630.0,0.00179003]
[1764599924244,0.23086424,86631.0,86630.0,0.00079003]
[1764599924452,0.23186424,86631.0,86630.0,0.00179003]
[1764599924808,0.23086424,86631.0,86630.0,0.00079003]
[1764599925308,0.23186424,86631.0,86630.0,0.00179003]
[1764599925458,0.23086424,86631.0,86630.0,0.00079003]
[1764599925659,0.23086424,86631.0,86630.0,0.00191003]
[1764599925660,0.001,86631.0,86630.0,0.00191003]
[1764599925884,0.001,86631.0,86630.0,0.00179003]
[1764599926066,0.38976424,86631.0,86630.0,0.00179003]
[1764599926299,0.45413511,86631.0,86630.0,0.00179003]
[1764599926717,0.38976424,86631.0,86630.0,0.00179003]
[1764599927138,0.38976424,86631.0,86630.0,0.00079003]
[1764599927139,0.38876424,86631.0,86630.0,0.00079003]
[1764599927542,0.38976424,86631.0,86630.0,0.00179003]
[1764599927852,0.38876424,86631.0,86630.0,0.00079003]
[1764599928002,0.39076424,86631.0,86630.0,0.00179003]
[1764599928743,0.47832031,86631.0,86630.0,0.00179003]
[1764599928936,0.39076424,86631.0,86630.0,0.00179003]
[1764599929444,0.39820424,86631.0,86630.0,3e-08]
[1764599929834,0.74612542,86631.0,86630.0,3e-08]
[1764599930197,0.74612542,86631.0,86630.0,20.00000003]
[1764599930365,0.85935138,86631.0,86630.0,19.47734825]
[1764599930568,0.85935138,86631.0,86630.0,17.61626917]
[1764599930569,0.92187437,86631.0,86630.0,17.61626917]
[1764599930793,2.92487437,86631.0,86630.0,17.4213335]
[1764599931023,2.92487437,86631.0,86630.0,17.02480267]
[1764599931024,2.92187437,86631.0,86630.0,17.02480267]
[1764599931272,2.92187437,86631.0,86630.0,16.23777578]
[1764599931273,3.34631359,86631.0,86630.0,16.23777578]
[1764599931476,3.13424006,86631.0,86630.0,15.37939778]
[1764599931619,3.05329587,86631.0,86630.0,15.14635972]
[1764599931817,3.05329587,86631.0,86630.0,15.1126753]
[1764599931818,3.00348612,86631.0,86630.0,15.1126753]
[1764599932024,2.9874862,86631.0,86630.0,14.90482658]
[1764599932221,3.04985234,86631.0,86630.0,14.43699888]
[1764599932451,3.00841267,86631.0,86630.0,13.93288966]
[1764599932655,3.00841267,86631.0,86630.0,13.89820524]
[1764599932656,2.92954841,86631.0,86630.0,13.89820524]
[1764599932857,2.83193026,86631.0,86630.0,13.89820524]
[1764599933056,2.83263284,86631.0,86630.0,13.89820524]
[1764599933267,2.83163284,86631.0,86630.0,13.34515602]
[1764599933502,2.83963284,86631.0,86630.0,13.18324893]
[1764599933664,2.83363284,86631.0,86630.0,13.00654902]
[1764599934006,2.83863284,86631.0,86630.0,12.65877468]
[1764599934150,2.81364841,86631.0,86630.0,12.65877468]
[1764599934345,2.80664841,86631.0,86630.0,12.65777468]
[1764599934590,2.80664841,86631.0,86630.0,11.98728843]
[1764599934591,2.83663284,86631.0,86630.0,11.98728843]
[1764599934793,2.83663284,86631.0,86630.0,11.85956069]
[1764599934794,2.83863284,86631.0,86630.0,11.85956069]
[1764599934986,2.83857488,86631.0,86630.0,11.48348632]
[1764599935171,2.80864841,86631.0,86630.0,11.48348632]
[1764599935485,2.83863284,86631.0,86630.0,10.83734122]
[1764599935688,2.86855931,86631.0,86630.0,10.5979158]
[1764599935888,2.89284116,86631.0,86630.0,10.33889515]
[1764599936067,2.89284116,86631.0,86630.0,10.23211802]
[1764599936276,2.89284116,86631.0,86630.0,9.82867148]
[1764599936477,2.89284116,86631.0,86630.0,9.67089164]
[1764599936677,2.88584116,86631.0,86630.0,9.54710639]
[1764599936876,2.89084116,86631.0,86630.0,9.29347202]
[1764599937079,2.89184116,86631.0,86630.0,9.05897232]
[1764599937290,2.88684116,86631.0,86630.0,8.35701243]
[1764599937488,2.8936745,86631.0,86630.0,5.56377448]
[1764599937865,2.8936745,86631.0,86630.0,4.19530823]
[1764599937866,3.0175745,86631.0,86630.0,4.19530823]
[1764599938068,2.96047488,86631.0,86630.0,3.21264974]
[1764599938266,0.23094421,86601.0,86600.0,0.06]
[1764599938430,2.7656143,86601.0,86600.0,0.06011692]
[1764599938584,2.8578443,86601.0,86600.0,0.06011692]
[1764599938827,0.61648854,86593.0,86592.0,0.00337216]
[1764599939031,0.55402424,86571.0,86550.0,0.0004]
[1764599939252,0.76162016,86571.0,86570.0,0.00051706]
[1764599939750,0.82414315,86571.0,86570.0,0.00051706]
[1764599940357,0.82614315,86571.0,86570.0,0.00051706]
[1764599940559,0.82614315,86571.0,86550.0,0.0004]
[1764599940560,0.55407763,86551.0,86550.0,0.0004]
[1764599940762,0.55407763,86551.0,86508.0,0.01155962]
[1764599940763,0.01155721,86526.0,86491.0,0.02888781]
[1764599940976,0.323,86540.0,86491.0,0.02888781]
[1764599940977,0.0456,86509.0,86491.0,0.00039042]
[1764599941384,0.0456,86509.0,86491.0,0.23162721]
[1764599941595,0.0456,86520.0,86502.0,0.01156042]
[1764599941788,0.0456,86520.0,86504.0,0.01156015]
[1764599942041,0.0456,86520.0,86502.0,0.01900042]
[1764599942344,0.0456,86520.0,86509.0,0.01155949]
[1764599942563,0.0456,86520.0,86507.0,0.23119322]
[1764599942564,0.0456,86520.0,86507.0,0.01155975]
[1764599942767,0.0456,86520.0,86508.0,0.02617537]
[1764599942971,0.0456,86520.0,86500.0,0.323]
[1764599942972,0.002,86509.0,86504.0,0.23120162]
[1764599943177,0.002,86509.0,86502.0,0.01156042]
[1764599943375,0.0456,86520.0,86506.0,0.01155989]
[1764599943587,0.0476,86520.0,86506.0,0.11522596]
[1764599943793,0.0456,86520.0,86506.0,0.11522596]
[1764599943998,0.0456,86520.0,86498.0,0.00744]
[1764599944150,0.002,86509.0,86494.0,0.25023024]
[1764599944367,0.09223,86519.0,86498.0,0.01156096]
[1764599944586,0.0456,86520.0,86502.0,0.01156042]
[1764599944760,0.09223,86519.0,86502.0,0.001]
[1764599944965,0.09223,86519.0,86502.0,0.01256042]
[1764599945196,0.09223,86519.0,86502.0,0.001]
[1764599945534,0.09223,86519.0,86518.0,0.00235074]
[1764599945961,0.15824,86519.0,86518.0,0.00235074]
[1764599946432,0.002,86519.0,86518.0,0.00235074]
[1764599946637,0.0456,86526.0,86518.0,0.00235074]
[1764599946844,0.00744,86534.0,86518.0,0.00039042]
[1764599947046,0.0476,86519.0,86518.0,0.00039042]
[1764599947215,0.11361,86519.0,86518.0,0.00039042]
[1764599947430,0.20584,86519.0,86518.0,0.00039042]
[1764599947775,0.20384,86519.0,86518.0,0.00039042]
[1764599947978,0.52684,86519.0,86518.0,0.00039042]
[1764599948181,0.58936299,86519.0,86518.0,0.00039042]
[1764599948834,0.0456,86519.0,86518.0,0.00039042]
[1764599949125,0.11161,86519.0,86518.0,0.00039042]
[1764599949385,0.20384,86519.0,86518.0,0.00039042]
[1764599949616,0.20584,86519.0,86518.0,0.00039042]
[1764599949816,0.20384,86519.0,86518.0,0.00039042]
[1764599949929,0.0456,86519.0,86518.0,0.00039042]
[1764599950342,0.002,86519.0,86518.0,0.00039042]
[1764599950943,0.0456,86525.0,86518.0,0.00039042]
[1764599951978,0.09223,86524.0,86518.0,0.00039042]
[1764599952437,0.002,86519.0,86518.0,0.00039042]
[1764599952622,0.06601,86519.0,86518.0,0.00039042]
[1764599952778,0.15824,86519.0,86518.0,0.00274116]
[1764599953555,0.16024,86519.0,86518.0,0.00274116]
[1764599953937,0.15824,86519.0,86518.0,0.00274116]
[1764599954073,0.16024,86519.0,86518.0,0.00274116]
[1764599954519,0.002,86519.0,86518.0,0.00274116]
[1764599955405,0.13783,86525.0,86518.0,0.00274116]
[1764599955604,0.13783,86525.0,86518.0,0.00039042]
[1764599955805,0.002,86519.0,86518.0,0.00039042]
[1764599956012,0.0456,86525.0,86518.0,0.00039042]
[1764599956212,0.0456,86551.0,86535.0,0.01155601]
[1764599956443,0.0456,86551.0,86534.0,0.01155615]
[1764599956626,0.0456,86551.0,86540.0,0.58534307]
[1764599956786,0.0456,86558.0,86546.0,0.01155454]
[1764599957002,0.0456,86558.0,86550.0,0.58534307]
[1764599957205,0.0456,86558.0,86540.0,0.58534307]
[1764599957542,0.0456,86558.0,86544.0,0.01155481]
[1764599957801,0.14295,86558.0,86539.0,0.00744]
[1764599957954,0.14306671,86558.0,86539.0,0.00744]
[1764599958153,0.14306671,86558.0,86550.0,0.001]
[1764599958586,0.002,86551.0,86550.0,0.001]
[1764599958765,0.14306671,86558.0,86550.0,0.001]
[1764599958971,0.16239263,86558.0,86550.0,0.001]
[1764599959147,0.14506671,86558.0,86550.0,0.001]
[1764599959362,0.01155535,86540.0,86506.0,0.01155989]
[1764599959566,0.01155535,86540.0,86485.0,0.4]
[1764599959567,0.01155361,86553.0,86520.0,0.60266899]
[1764599959764,0.01155414,86549.0,86539.0,0.001]
[1764599959989,0.23109459,86545.0,86539.0,0.001]
[1764599960310,0.23109459,86545.0,86517.0,0.23116768]
[1764599960311,0.30342259,86540.0,86516.0,0.323]
[1764599960519,0.06076,86540.0,86517.0,0.01155842]
[1764599960732,0.00744,86540.0,86522.0,0.01155775]
[1764599960933,0.00744,86546.0,86525.0,0.01155735]
[1764599961166,0.00744,86546.0,86528.0,0.01155695]
[1764599961370,0.00744,86546.0,86522.0,0.01155775]
[1764599961575,0.00744,86546.0,86526.0,0.01155721]
[1764599962007,0.09735,86565.0,86549.0,0.01155414]
[1764599962156,0.03099187,86588.0,86557.0,0.23106161]
[1764599962157,0.00011671,86558.0,86557.0,0.23106161]
[1764599962480,0.00011671,86558.0,86557.0,0.23580161]
[1764599962680,0.00011671,86558.0,86557.0,0.31437844]
[1764599962829,0.00011671,86558.0,86557.0,0.32181844]
[1764599963025,0.00011671,86558.0,86557.0,0.72181844]
[1764599963230,0.00011671,86558.0,86557.0,0.96624161]
[1764599963432,0.00011671,86558.0,86557.0,0.97098161]
[1764599963635,0.05302,86594.0,86577.0,0.24255694]
[1764599963847,0.05313706,86594.0,86571.0,0.323]
[1764599964073,0.01155067,86575.0,86568.0,0.00744]
[1764599964281,0.01154987,86581.0,86552.0,0.01155374]
[1764599964486,0.323,86587.0,86560.0,0.58534307]
[1764599964487,0.01154934,86585.0,86560.0,0.58534307]
[1764599964690,0.003,86558.0,86557.0,0.001]
[1764599964914,0.09735,86584.0,86557.0,0.001]
[1764599965149,0.2425529,86580.0,86557.0,0.001]
[1764599965361,0.002,86575.0,86557.0,0.0744242]
[1764599965562,0.01155041,86577.0,86557.0,0.001]
[1764599965817,0.003,86558.0,86557.0,0.001]
[1764599965988,0.003,86558.0,86548.0,0.2310838]
[1764599966184,0.003,86558.0,86548.0,0.00011671]
[1764599966420,0.24258792,86567.0,86548.0,0.00011671]
[1764599966607,0.25001892,86570.0,86548.0,0.00011671]
[1764599966608,0.00744,86570.0,86550.0,0.58534307]
[1764599966944,0.00744,86570.0,86548.0,0.00011671]
[1764599966945,0.01155147,86569.0,86551.0,0.06201231]
[1764599967068,0.23103758,86566.0,86548.0,0.00111671]
[1764599967525,0.25001879,86570.0,86548.0,0.00111671]
[1764599967526,0.00744,86570.0,86548.0,0.00011671]
[1764599967689,0.00744,86570.0,86550.0,0.58534307]
[1764599967913,0.00744,86570.0,86551.0,0.06201227]
[1764599968082,0.00744,86570.0,86551.0,0.30464224]
[1764599968286,0.00744,86570.0,86554.0,0.01732592]
[1764599968545,0.00744,86570.0,86553.0,0.24262421]
[1764599968755,0.00944,86570.0,86552.0,0.01155374]
[1764599968886,0.00944,86570.0,86554.0,0.01155348]
[1764599969131,0.00744,86570.0,86553.0,0.01432659]
[1764599969329,0.00744,86570.0,86556.0,0.24261596]
[1764599969578,0.00944,86570.0,86554.0,0.25994764]
[1764599969751,0.002,86570.0,86567.0,0.23103357]
[1764599969953,0.00744,86581.0,86568.0,0.25528941]
[1764599970156,0.002,86570.0,86568.0,0.02425854]
[1764599970568,0.002,86570.0,86551.0,0.38501227]
[1764599970767,0.002,86570.0,86554.0,0.001]
[1764599970768,0.01155161,86568.0,86554.0,0.001]
[1764599970970,0.14293,86569.0,86554.0,0.001]
[1764599971350,0.04558,86569.0,86554.0,0.001]
[1764599971559,0.04558,86575.0,86556.0,0.23106428]
[1764599971732,0.04558,86575.0,86554.0,0.003]
[1764599971733,0.001,86570.0,86554.0,0.003]
[1764599972079,0.24257725,86571.0,86569.0,0.00073021]
[1764599972287,0.01255147,86569.0,86554.0,0.003]
[1764599972528,0.23102765,86570.0,86560.0,0.001]
[1764599972691,0.01155107,86572.0,86560.0,0.001]
[1764599972908,0.001,86570.0,86560.0,0.001]
[1764599973146,0.01155134,86570.0,86560.0,0.001]
[1764599973354,0.23108198,86550.0,86548.0,0.00011671]
[1764599973526,0.23108195,86550.0,86548.0,0.00011671]
[1764599973865,0.23108058,86550.0,86548.0,0.00011671]
[1764599974066,0.15936,86549.0,86548.0,0.00011671]
[1764599974475,0.01155374,86552.0,86548.0,0.00011671]
[1764599974686,0.15936,86549.0,86548.0,0.00011671]
[1764599974876,0.01155308,86557.0,86548.0,0.00011671]
[1764599975173,0.01155308,86557.0,86548.0,0.00311671]
[1764599975319,0.001,86550.0,86548.0,0.00311671]
[1764599975526,0.06435,86549.0,86548.0,0.00011671]
[1764599975726,0.01155374,86552.0,86548.0,0.00411671]
[1764599975927,0.06535,86549.0,86548.0,0.00411671]
[1764599976133,0.06435,86549.0,86548.0,0.00011671]
[1764599976357,0.15936,86549.0,86548.0,0.00411671]
[1764599976561,0.01192628,86549.0,86548.0,0.00411671]
[1764599976779,0.07627628,86549.0,86548.0,0.00411671]
[1764599977194,0.07627628,86549.0,86548.0,0.00511671]
[1764599977607,0.07627628,86549.0,86548.0,0.00111671]
[1764599977817,0.07727628,86549.0,86548.0,0.00511671]
[1764599978057,0.07727628,86549.0,86548.0,0.00651396]
[1764599978377,0.07627628,86549.0,86548.0,0.00251396]
[1764599978532,0.07827628,86549.0,86548.0,0.00251396]
[1764599978741,0.30935925,86549.0,86548.0,0.00251396]
[1764599979708,0.07827628,86549.0,86548.0,0.00251396]
[1764599979984,0.27259297,86549.0,86548.0,0.00251396]
[1764599981869,0.59559297,86549.0,86548.0,0.00251396]
[1764599983320,0.33244,86549.0,86548.0,0.00251396]
[1764599983522,0.35707,86549.0,86548.0,0.00251396]
[1764599983767,0.36451,86549.0,86548.0,0.00251396]
[1764599983895,0.36251,86549.0,86548.0,0.00151396]
[1764599984125,0.36251,86549.0,86548.0,0.00251396]
[1764599984126,0.36851,86549.0,86548.0,0.00251396]
[1764599984334,0.36251,86549.0,86548.0,0.00151396]
[1764599984789,0.36551,86549.0,86548.0,0.00251396]
[1764599985087,0.36251,86549.0,86548.0,0.00151396]
[1764599985286,0.36651,86549.0,86548.0,0.00251396]
[1764599985657,0.33476,86549.0,86548.0,0.00251396]
[1764599986047,0.36651,86549.0,86548.0,0.00251396]
[1764599986250,0.04351,86549.0,86548.0,0.00251396]
[1764599987047,0.01176,86549.0,86548.0,0.00251396]
[1764599987267,0.04351,86549.0,86548.0,0.00251396]
[1764599987890,0.004,86549.0,86548.0,0.00251396]
[1764599988248,0.004,86549.0,86548.0,0.02967935]
[1764599988462,0.004,86549.0,86548.0,0.00251396]
[1764599989461,0.004,86549.0,86548.0,0.06524396]
[1764599989647,0.004,86549.0,86548.0,0.15587396]
[1764599989983,0.23102566,86571.0,86548.0,0.15587396]
[1764599989984,0.00744,86574.0,86552.0,0.01155374]
[1764599990191,0.01155094,86573.0,86553.0,0.23107053]
[1764599990351,0.01155094,86573.0,86552.0,0.01155374]
[1764599990352,0.01155121,86571.0,86552.0,0.01155374]
[1764599990551,0.01155147,86569.0,86550.0,0.01155401]
[1764599990772,0.01155147,86569.0,86548.0,0.23508298]
[1764599990773,0.01155147,86569.0,86548.0,0.004]
[1764599991000,0.04608161,86568.0,86549.0,0.01155414]
[1764599991148,0.04608161,86568.0,86547.0,0.03804]
[1764599991149,0.01155174,86567.0,86547.0,0.03804]
[1764599991348,0.27712072,86566.0,86552.0,0.001]
[1764599991571,0.03453,86566.0,86550.0,0.01155401]
[1764599991801,0.00011701,86567.0,86552.0,0.01155374]
[1764599992002,0.00011701,86567.0,86565.0,0.0368]
[1764599992181,0.00011701,86567.0,86566.0,0.02794052]
[1764599992655,0.00011701,86567.0,86565.0,0.0368]
[1764599993002,0.00011701,86567.0,86549.0,0.01155414]
[1764599993209,0.00011701,86567.0,86552.0,0.33455374]
[1764599993430,0.00011701,86567.0,86552.0,0.324]
[1764599993593,0.002,86566.0,86552.0,0.324]
[1764599993789,0.002,86566.0,86550.0,0.00744]
[1764599993790,0.01155187,86566.0,86550.0,0.00744]
[1764599994043,0.01155241,86562.0,86547.0,0.03804]
[1764599994240,0.01155281,86559.0,86549.0,0.003]
[1764599994407,0.01155254,86561.0,86547.0,0.03804]
[1764599994620,0.01155241,86562.0,86547.0,0.03804]
[1764599994864,0.01155254,86561.0,86552.0,0.002]
[1764599995165,0.24258176,86569.0,86547.0,0.04959441]
[1764599995398,0.00744,86570.0,86547.0,0.04959441]
[1764599995399,0.05362134,86570.0,86551.0,0.01155388]
[1764599995597,0.01899134,86570.0,86551.0,0.01155388]
[1764599995895,0.01155201,86565.0,86548.0,0.04613852]
[1764599996070,0.24258967,86566.0,86547.0,0.05059441]
[1764599996274,0.001,86559.0,86549.0,0.004]
[1764599996453,0.001,86559.0,86548.0,0.01155428]
[1764599996667,0.001,86559.0,86547.0,0.2806825]
[1764599996847,0.001,86559.0,86551.0,0.002]
[1764599997044,0.24370386,86567.0,86542.0,0.0368]
[1764599997045,0.01155268,86560.0,86542.0,0.0368]
[1764599997246,0.01155334,86555.0,86536.0,0.0368]
[1764599997476,0.24262974,86552.0,86551.0,0.001]
[1764599997683,0.27726974,86552.0,86551.0,0.001]
[1764599998103,0.01155428,86548.0,86535.0,0.0368]
[1764599998318,0.04548,86541.0,86540.0,0.00125414]
[1764599998524,0.31144433,86541.0,86540.0,0.00125414]
[1764599998745,0.31179433,86541.0,86540.0,0.00025414]
[1764599999425,0.63479433,86541.0,86540.0,0.00064456]
[1764600000020,0.69731732,86541.0,86540.0,0.00364456]
[1764600000225,0.69831732,86541.0,86540.0,0.00364456]
[1764600000530,2.72703405,86541.0,86540.0,0.00052456]
[1764600000867,2.73787401,86541.0,86540.0,0.00252456]
[1764600001145,2.75332736,86541.0,86540.0,0.00152456]
[1764600001346,2.72965067,86541.0,86540.0,0.00052456]
[1764600001492,2.70475732,86541.0,86540.0,0.00052456]
[1764600001693,2.47465299,86541.0,86540.0,0.00052456]
[1764600001906,0.08134,86541.0,86540.0,0.00052456]
[1764600002116,0.04148892,86545.0,86542.0,0.2310989]
[1764600002370,0.04148892,86545.0,86544.0,0.10077]
[1764600002672,0.04521,86557.0,86544.0,0.03804]
[1764600002851,0.04521,86557.0,86540.0,0.00052456]
[1764600002852,0.04521,86557.0,86540.0,0.01207991]
[1764600003058,0.007,86541.0,86540.0,0.24418691]
[1764600003257,0.04521,86557.0,86541.0,0.24265859]
[1764600003460,0.01155201,86565.0,86543.0,0.01155494]
[1764600003645,0.001,86545.0,86544.0,0.007]
[1764600003845,0.01155201,86565.0,86544.0,0.16491481]
[1764600004044,0.01155201,86565.0,86544.0,0.01155481]
[1764600004247,0.00744,86571.0,86550.0,0.01155401]
[1764600004506,0.03224,86570.0,86543.0,0.01155494]
[1764600004659,0.2310101,86577.0,86543.0,0.01155494]
[1764600004660,0.04547,86579.0,86554.0,0.01155348]
[1764600004857,0.04547,86579.0,86540.0,0.00152456]
[1764600004858,0.01732592,86562.0,86540.0,0.00152456]
[1764600005059,0.01732592,86562.0,86543.0,0.01155494]
[1764600005262,0.00744,86569.0,86548.0,0.01155428]
[1764600005604,0.00744,86569.0,86551.0,0.01155388]
[1764600005822,0.01155214,86564.0,86544.0,0.004]
[1764600006028,0.01155214,86564.0,86540.0,0.00052456]
[1764600006029,0.01155321,86556.0,86540.0,0.00796456]
[1764600006156,0.01155321,86556.0,86543.0,0.001]
[1764600006157,0.01155348,86554.0,86543.0,0.001]
[1764600006360,0.23106848,86555.0,86543.0,0.001]
[1764600006562,0.01155321,86556.0,86540.0,0.00052456]
[1764600006563,0.01155374,86552.0,86540.0,0.00052456]
[1764600006768,0.01155361,86553.0,86551.0,0.001]
[1764600006969,0.03249,86552.0,86551.0,0.001]
[1764600007186,0.01155494,86543.0,86540.0,0.00052456]
[1764600007563,0.01155428,86548.0,86540.0,0.00052456]
[1764600007564,0.03249,86560.0,86540.0,0.00052456]
[1764600007798,0.24262399,86554.0,86540.0,0.00052456]
[1764600008111,0.24262657,86553.0,86540.0,0.00052456]
[1764600008313,0.01155401,86550.0,86540.0,0.00052456]
[1764600008455,0.01155401,86550.0,86543.0,0.003]
[1764600008456,0.01155428,86548.0,86543.0,0.003]
[1764600008654,0.01155374,86552.0,86540.0,0.00052456]
[1764600008867,0.05498485,86551.0,86540.0,0.00052456]
[1764600009105,0.004,86554.0,86540.0,0.00152456]
[1764600009310,0.05624308,86557.0,86540.0,0.00152456]
[1764600009311,0.04469,86557.0,86541.0,0.03597496]
[1764600009522,0.04457,86556.0,86540.0,0.00052456]
[1764600009756,0.002,86548.0,86543.0,0.001]
[1764600009884,0.04457,86556.0,86540.0,0.00052456]
[1764600010083,0.04457,86556.0,86540.0,0.24318534]
[1764600010276,0.001,86554.0,86541.0,0.05880361]
[1764600010471,0.01155388,86551.0,86540.0,0.00252456]
[1764600010695,0.23108204,86550.0,86540.0,0.00252456]
[1764600010911,0.01967,86541.0,86540.0,0.00252456]
[1764600011457,0.01967,86541.0,86503.0,0.01156029]
[1764600011458,0.01155748,86524.0,86503.0,0.01156029]
[1764600011675,0.01155735,86525.0,86505.0,0.01156002]
[1764600011876,0.00744,86526.0,86503.0,0.00011715]
[1764600011877,0.23117645,86514.0,86503.0,0.00011715]
[1764600012024,0.01155868,86515.0,86503.0,0.00011715]
[1764600012026,0.01379,86504.0,86503.0,0.00011715]
[1764600012227,0.15038,86504.0,86503.0,0.00011715]
[1764600012429,0.01379,86504.0,86503.0,0.00011715]
[1764600012631,0.15085,86504.0,86503.0,0.00011715]
[1764600012853,0.17514592,86504.0,86503.0,0.00011715]
[1764600013433,0.17814592,86504.0,86503.0,0.00111715]
[1764600013768,0.17514592,86504.0,86503.0,0.00011715]
[1764600014788,0.49814592,86504.0,86503.0,0.00011715]
[1764600015595,0.56066891,86504.0,86503.0,0.00011715]
[1764600015795,2.56066891,86504.0,86503.0,0.00011715]
[1764600016410,2.56466891,86504.0,86503.0,0.00111715]
[1764600016604,2.56066891,86504.0,86503.0,0.00011715]
[1764600017024,2.56966891,86504.0,86503.0,0.00211715]
[1764600017402,2.56066891,86504.0,86503.0,0.00129307]
[1764600017600,2.56966891,86504.0,86503.0,0.00329307]
[1764600018236,2.57066891,86504.0,86503.0,0.00329307]
[1764600018631,2.56966891,86504.0,86503.0,0.00329307]
[1764600018855,0.56966891,86504.0,86503.0,0.00329307]
[1764600019214,2.57066891,86504.0,86503.0,0.00329307]
[1764600019891,2.5981633,86504.0,86503.0,0.00329307]
[1764600020043,2.57066891,86504.0,86503.0,0.00329307]
[1764600020439,2.56322891,86504.0,86503.0,0.00329307]
[1764600020645,2.57066891,86504.0,86503.0,0.00329307]
[1764600022442,0.50814592,86504.0,86503.0,0.00329307]
[1764600023510,0.49914592,86504.0,86503.0,0.00129307]
[1764600023714,0.50614592,86504.0,86503.0,0.00329307]
[1764600024030,0.50514592,86504.0,86503.0,0.00329307]
[1764600025572,2.56766891,86504.0,86503.0,0.00329307]
[1764600026558,2.54334299,86504.0,86503.0,0.00129307]
[1764600026804,2.56066891,86504.0,86503.0,0.00129307]
[1764600026990,2.57166891,86504.0,86503.0,0.00229307]
[1764600027186,2.56066891,86504.0,86503.0,0.00129307]
[1764600027521,2.57266891,86504.0,86503.0,0.00229307]
[1764600027663,2.78543209,86504.0,86503.0,0.00129307]
[1764600027846,2.64953207,86504.0,86503.0,0.00129307]
[1764600028049,2.89953207,86504.0,86503.0,0.00129307]
[1764600029685,2.90453207,86504.0,86503.0,0.00129307]
[1764600030100,2.90353207,86504.0,86503.0,0.00129307]
[1764600030849,2.89853207,86504.0,86503.0,0.00129307]
[1764600031671,2.89953207,86504.0,86503.0,0.00129307]
[1764600031896,2.92702646,86504.0,86503.0,0.00129307]
[1764600032103,2.92426517,86504.0,86503.0,0.00129307]
[1764600032700,2.93226517,86504.0,86503.0,0.00129307]
[1764600033164,0.23131014,86464.0,86461.0,4.008e-05]
[1764600033305,0.31855606,86464.0,86463.0,0.00021711]
[1764600033825,0.23134492,86451.0,86440.0,0.0004]
[1764600034028,0.25673084,86451.0,86440.0,0.0004]
[1764600034734,0.02538592,86451.0,86440.0,0.0004]
[1764600035482,0.01156537,86465.0,86440.0,0.0004]
[1764600035616,0.01732592,86451.0,86440.0,0.0004]
[1764600036022,0.01932592,86451.0,86440.0,0.0004]
[1764600036224,0.00744,86453.0,86444.0,0.23136334]
[1764600036608,0.00744,86453.0,86450.0,0.02357633]
[1764600036824,0.00744,86453.0,86450.0,0.0004]
[1764600037194,0.002,86451.0,86450.0,0.0004]
[1764600037405,0.002,86451.0,86450.0,0.0014]
[1764600037641,0.01732592,86477.0,86450.0,0.0014]
[1764600037780,0.00744,86465.0,86452.0,0.04592]
[1764600038188,0.0115643,86473.0,86452.0,0.04592]
[1764600038189,0.0115635,86479.0,86456.0,0.01156657]
[1764600038380,0.03063,86465.0,86456.0,0.01156657]
[1764600038696,0.002,86453.0,86452.0,0.28882935]
[1764600039084,0.03063,86465.0,86452.0,0.28882935]
[1764600039085,0.03063,86465.0,86452.0,0.11241]
[1764600039298,0.002,86461.0,86452.0,0.11241]
[1764600039508,0.03063,86465.0,86455.0,0.01156671]
[1764600039707,0.03063,86465.0,86456.0,0.01156657]
[1764600039981,0.03063,86465.0,86453.0,0.02516147]
[1764600040092,0.03063,86465.0,86453.0,0.0135945]
[1764600040307,0.01156577,86462.0,86450.0,0.0004]
[1764600040528,0.0135659,86461.0,86450.0,0.0004]
[1764600040755,0.01156644,86457.0,86450.0,0.0004]
[1764600040987,0.23134389,86452.0,86450.0,0.0004]
[1764600041185,0.01841592,86451.0,86450.0,0.0004]
[1764600041366,0.01841592,86451.0,86450.0,0.0014]
[1764600042478,0.03063,86465.0,86453.0,0.01156697]
[1764600042854,0.03063,86465.0,86451.0,0.04592]
[1764600043058,0.03063,86465.0,86451.0,0.01156724]
[1764600043259,0.03063,86465.0,86451.0,0.24291167]
[1764600043455,0.03063,86465.0,86450.0,0.01196737]
[1764600043800,0.23131321,86463.0,86450.0,0.0004]
[1764600043939,0.07984891,86451.0,86450.0,0.0004]
[1764600044140,0.43628048,86451.0,86450.0,0.0004]
[1764600044571,0.43628048,86451.0,86450.0,0.00208583]
[1764600045366,0.43184048,86451.0,86450.0,0.00208583]
[1764600045585,0.37675749,86451.0,86450.0,0.00208583]
[1764600045803,0.37375749,86451.0,86450.0,0.00208583]
[1764600046041,0.37775749,86451.0,86450.0,0.00208583]
[1764600046379,0.03343157,86451.0,86450.0,0.00208583]
[1764600046567,0.01153,86451.0,86450.0,0.00208583]
[1764600046780,0.02985592,86451.0,86450.0,0.00208583]
[1764600046983,0.004,86451.0,86450.0,0.00208583]
[1764600047179,0.003,86451.0,86450.0,0.00208583]
[1764600047728,0.00744,86459.0,86450.0,0.00208583]
[1764600047929,0.00744,86459.0,86450.0,0.0004]
[1764600048091,0.002,86451.0,86450.0,0.0004]
[1764600048290,0.00744,86459.0,86450.0,0.0014]
[1764600048291,0.23876356,86459.0,86450.0,0.0014]
[1764600048489,0.00744,86459.0,86450.0,0.00308583]
[1764600048745,0.002,86451.0,86450.0,0.0014]